Cogmind - Beta 16 @@@ ROGUE MODE // 2025.11.09 @ 20:41:47 Player: Runagate Result: Destroyed by B-86 Titan with Matter Neutralizer Performance ------------- Evolutions (7) 3500 Regions Visited (16) 3200 Robots Destroyed (221) 1105 Value Destroyed (8069) 8069 Prototype IDs (10) 200 Alien Tech Used (0) 0 Bonus (2642) 2642 TOTAL SCORE: 18716 Bonus ------- High Alert Combat Kills 146 Follower Combat Kills 1203 Awakened Behemoth Slayer 1000 Met Imprinter 300 Friendly Fire -7 Cogmind --------- Core Integrity 0/1300 Matter 243/300 Energy 98/100 System Corruption 5% Temperature Cool (9) Movement Core (50) Location -3/Research Parts ------- > --- POWER (2) -------- (None) > --- PROPULSION (4) --- (None) > --- UTILITY (11) ----- Advanced Targeting Computer > --- WEAPON (4) ------- (None) > --- INVENTORY (5) ---- Heavy Siege Treads Improved Heavy Siege Treads Peak State ------------ > --- POWER ------------ Quantum Reactor Quantum Reactor > --- PROPULSION ------- Centrium Heavy Treads Centrium Heavy Treads > --- UTILITY ---------- Advanced Heat Sink Advanced Heat Sink Advanced Heat Sink Advanced Heat Sink Advanced Cooling System High-capacity Storage Unit Advanced Sensor Array Improved Signal Interpreter Hacking Drone Bay > --- WEAPON ----------- Advanced Variable Charge Gun Advanced KE Penetrator Advanced KE Penetrator Hardcell Cannon > --- INVENTORY -------- Quantum Reactor Heavy Treads Heavy Siege Treads Heavy Siege Treads Heavy Siege Treads Advanced Heat Sink High-capacity Matter Pod Seismic Detector Advanced Transmission Jammer Plasma Rifle Plasma Rifle Wave Gun Phase Gun KE Penetrator Advanced KE Penetrator CR-A16's Behemoth Slayer [Rating: 141] Favorites ----------- Power Improved Deuterium Engine Engine Improved Deuterium Engine Power Core Micro Fission Core Reactor Light Antimatter Reactor Propulsion Advanced Treads Treads Advanced Treads Utility Large Storage Unit Device Advanced Sensor Array Storage Large Storage Unit Processor Improved Signal Interpreter Protection Layered Heavy Armor Plating Weapon Flak Gun Energy Gun Plasma Rifle Energy Cannon Subdweller Beam Cannon Ballistic Gun Flak Gun Ballistic Cannon Hardcell Cannon Launcher Improved Grenade Launcher Special Weapon Improved Plasma Cutter Impact Weapon Great Maul Piercing Weapon CR-A16's Behemoth Slayer Build | -11 -10 -9 -8 -7 -6 -6 -6 -6 -5 -5 -4 -4 -4 -4 -4 -3 ------- Run | Yrd Mat Mat Mat Fac Fac Low Low Zio Pro Fac Fac Ext Cet Arc Hub Res Slots Evolved 14 | . . 2 2 2 2 . . . . 2 2 . . . . 2 Power 1 | . . . . . . . . . . 1 . . . . . . Propulsion 2 | . . 1 . 1 . . . . . . . . . . . . Utility 9 | . . . 2 1 2 . . . . 1 1 . . . . 2 Weapon 2 | . . 1 . . . . . . . . 1 . . . . . Parts Attached 167 | 9 10 25 20 11 11 2 3 1 6 17 22 12 11 2 2 3 Power 25 | 2 2 4 1 . 1 . 1 . 1 4 5 2 2 . . . Engine 12 | 2 2 4 . . 1 . 1 . 1 1 . . . . . . Core 8 | . . . 1 . . . . . . 3 4 . . . . . Reactor 5 | . . . . . . . . . . . 1 2 2 . . . Propulsion 42 | 2 2 8 7 6 2 . . 1 1 2 7 1 2 . . 1 Treads 42 | 2 2 8 7 6 2 . . 1 1 2 7 1 2 . . 1 Leg . | . . . . . . . . . . . . . . . . . Wheel . | . . . . . . . . . . . . . . . . . Hover . | . . . . . . . . . . . . . . . . . Flight . | . . . . . . . . . . . . . . . . . Utility 54 | 3 4 5 7 1 4 2 2 . 1 6 6 5 3 2 1 2 Device 31 | 2 2 1 3 1 2 1 1 . 1 4 5 3 3 1 1 . Storage 7 | 1 2 . 1 . . . . . . 1 . 1 . 1 . . Processor 4 | . . . . . 1 . . . . 1 . . . . . 2 Hackware . | . . . . . . . . . . . . . . . . . Protection 12 | . . 4 3 . 1 1 1 . . . 1 1 . . . . Artifact . | . . . . . . . . . . . . . . . . . Weapon 46 | 2 2 8 5 4 4 . . . 3 5 4 4 4 . 1 . Energy Gun 11 | 2 1 . . 1 1 . . . . . 3 2 1 . . . Energy Cannon 3 | . 1 . . . . . . . 1 1 . . . . . . Ballistic Gun 25 | . . 8 3 3 2 . . . 1 2 1 1 3 . 1 . Ballistic Cannon 2 | . . . 1 . . . . . . . . 1 . . . . Launcher 1 | . . . . . 1 . . . . . . . . . . . Special Weapon 1 | . . . . . . . . . . 1 . . . . . . Impact Weapon 1 | . . . 1 . . . . . . . . . . . . . Slashing Weapon . | . . . . . . . . . . . . . . . . . Piercing Weapon 2 | . . . . . . . . . 1 1 . . . . . . Special Melee Weapon . | . . . . . . . . . . . . . . . . . Unidentified Prototypes 7 | . . 1 1 . . . . . . 2 . . 3 . . . Corrupted Parts 2 | . . . . . . . . . . . . . 2 . . . System Corruption 3 | . . . . . . . . . . . . . 3 . . . Parts Lost 24 | . . . . 1 . . . . . . 1 4 8 1 8 1 Power 6 | . . . . . . . . . . . 1 1 2 . 2 . Propulsion 1 | . . . . . . . . . . . . . . . 1 . Utility 7 | . . . . . . . . . . . . 1 3 1 1 1 Weapon 10 | . . . . 1 . . . . . . . 2 3 . 4 . Highest Loss Streak 8 | . . . . 1 . . . . . . 1 2 8 1 5 1 To Critical Strikes 2 | . . . . . . . . . . . . . 2 . . . Average Backups 13 | 2 10 14 14 14 13 14 14 14 14 13 13 12 15 15 14 1 Power . | . 1 1 1 1 . . . . . . . . . 1 . . Propulsion 3 | . 1 2 4 4 4 4 4 3 3 2 2 2 4 4 3 1 Utility 4 | . 3 6 3 3 3 4 3 3 4 4 5 4 4 3 2 . Weapon 5 | 1 3 5 5 6 6 6 6 7 7 7 6 5 6 7 7 . Tool/Special . | . . . . . . . . . . . . . . . . . Unused Backups 35 | 3 3 11 3 2 2 . 1 . . 1 2 . . . 6 1 Power 2 | . . 1 . . . . . . . . . . . . 1 . Propulsion 13 | . . 4 3 1 . . . . . 1 1 . . . 2 1 Utility 7 | . 2 3 . . . . 1 . . . 1 . . . . . Weapon 13 | 3 1 3 . 1 2 . . . . . . . . . 3 . Tool/Special . | . . . . . . . . . . . . . . . . . Average Slot Usage (%) 92 | . 99 99 99 97 93 93 93 93 93 92 92 85 75 88 79 4 Engine 5 | . 14 11 4 . 4 6 6 6 6 5 3 . . . . . Core 1 | . . . 4 7 1 . . . . 3 5 2 . . . . Reactor 1 | . . . . . . . . . . . . 7 6 10 8 . Treads 23 | . 28 33 27 28 25 26 26 26 26 23 20 10 9 10 9 . Device 17 | . 13 3 13 21 21 19 20 20 20 19 20 23 28 32 27 . Storage 7 | . 14 11 9 7 6 6 6 6 6 5 5 5 5 8 9 . Processor 4 | . . . . . 5 6 6 6 6 8 10 10 5 5 4 3 Protection 5 | . . 7 13 7 6 6 6 6 6 5 5 4 . . . . Energy Gun 5 | . 21 1 . 5 6 6 6 6 6 5 9 6 2 5 3 . Energy Cannon 1 | . 6 3 . . . . . . 2 . . . . . . . Ballistic Gun 13 | . . 28 20 15 12 13 12 13 7 10 10 11 7 10 11 . Ballistic Cannon 1 | . . . 6 1 . . . . . . . 2 4 5 3 . Peak Build Rating 141 | 7 9 23 33 42 57 55 60 62 71 90 111 122 141 141 137 23 Average Rating 59 | 6 8 17 29 40 53 54 56 60 62 81 99 112 109 135 119 7 On Entrance 58 | . 7 9 21 33 42 55 55 60 62 68 84 108 118 141 134 2 Avg Prop Armor Cover (%) 26 | . . . . . . . . . . . . . 26 . . . Naked Turns 87 | . . . . . . . . . . . . . . . 8 79 Heaviest Build 118 | 15 36 45 52 48 66 68 66 66 70 81 97 109 115 118 118 . Greatest Support 160 | 40 40 66 66 88 94 92 92 92 100 100 140 140 160 160 160 75 Greatest Overweight (x) 35 | . . . . . . . . . . . . . 35 . . . Average Overweight (x) . | . . . . . . . . . . . . . 1 . . . Largest Inventory Capacity 20 | 8 15 15 15 15 15 15 15 15 15 15 15 20 20 20 20 5 Average Capacity 14 | 7 12 15 15 15 15 15 15 15 15 15 15 15 20 20 19 5 Most Carried 20 | 5 15 15 15 15 15 15 15 15 15 15 15 20 20 20 20 4 Average Carried 14 | 2 10 14 14 14 14 15 14 14 15 14 14 15 19 19 18 3 Final Capacity 20 | 8 15 15 15 15 15 15 15 15 15 15 15 20 20 20 5 5 Final Carried 20 | 5 15 15 15 15 15 15 15 15 15 15 15 20 20 20 4 4 Class Distribution -------------------- 31% | Scavenger-Skirmisher 26% | Tank 11% | Scavenger-Tank 10% | Skirmisher 9% | Mutant 5% | Commander-Tank Dominant Class ---------------- Mutant | -10/Materials Tank | -9/Materials Tank | -8/Materials Tank | -7/Factory Skirmisher | -6/Factory Scavenger-Skirmisher | -6/Lower Caves Scavenger-Skirmisher | -6/Lower Caves Scavenger-Skirmisher | -6/Zion Skirmisher | -5/Proximity Caves Scavenger-Skirmisher | -5/Factory Scavenger-Tank | -4/Factory Commander-Tank | -4/Extension Scavenger-Tank | -4/Cetus Scavenger-Skirmisher | -4/Archives Scavenger-Skirmisher | -4/Hub_04(d) Mutant | -3/Research Resources | -11 -10 -9 -8 -7 -6 -6 -6 -6 -5 -5 -4 -4 -4 -4 -4 -3 ----------- Run | Yrd Mat Mat Mat Fac Fac Low Low Zio Pro Fac Fac Ext Cet Arc Hub Res Matter Collected 8045 | 290 470 1108 1223 427 240 270 198 60 173 539 840 977 389 343 498 . Remotely 549 | . . . . 427 122 . . . . . . . . . . . Salvage Created 10162 | 201 735 1823 1548 554 331 100 452 . 204 655 1013 1254 236 289 767 . Parts 457 | 16 43 122 54 22 15 1 9 . 10 20 56 42 13 1 33 . Haulers Intercepted 11 | . 1 5 4 . 1 . . . . . . . . . . . Recyclers Shooed 12 | . 2 1 2 1 . . . . . 4 . 2 . . . . Parts Field Recycled . | . . . . . . . . . . . . . . . . . Retrieved Matter . | . . . . . . . . . . . . . . . . . Parts Self-Destructed 54 | . . . . . . 14 28 . 12 . . . . . . . Prevented 3 | . . . . . . 2 . . 1 . . . . . . . Parts Restored . | . . . . . . . . . . . . . . . . . Kills | -11 -10 -9 -8 -7 -6 -6 -6 -6 -5 -5 -4 -4 -4 -4 -4 -3 ------- Run | Yrd Mat Mat Mat Fac Fac Low Low Zio Pro Fac Fac Ext Cet Arc Hub Res Combat Hostiles Destroyed 149 | . 16 33 22 6 5 3 7 . 3 8 19 12 3 4 8 . Guns 120 | . 10 33 17 6 4 3 5 . 2 7 10 12 2 2 7 . Cannons 15 | . 5 . 5 . . . . . . . 1 . 1 2 1 . AOE 10 | . . . . . 1 . 2 . . . 7 . . . . . Classes Destroyed 18 | 3 5 3 1 2 . 1 . . 2 . . 1 . . . . Worker 16 | 1 1 7 3 2 . . . . . 1 1 . . . . . Builder 4 | . . . . 1 . . . . . . 1 . . . 2 . Tunneler 9 | 6 . . . . 1 . . . . . 1 . . . 1 . Hauler 11 | . 1 5 4 . 1 . . . . . . . . . . . Recycler 18 | 1 2 4 4 2 . . . . . 2 . 2 . . 1 . Mechanic 3 | . . 1 . . 1 . . . . . 1 . . . . . Operator 2 | . . . . . . . . . . . . 1 . 1 . . Watcher 8 | . 2 2 1 1 . . . . . . . 2 . . . . Swarmer 26 | . 8 13 . . . 1 . . . . 4 . . . . . Grunt 49 | . 6 12 14 2 1 1 . . . 4 3 6 . . . . Brawler 7 | . . 1 1 . . . 4 . . . 1 . . . . . Duelist 3 | . . . 1 . . . 2 . . . . . . . . . Sentry 36 | . . 7 6 3 3 . 1 . . 1 3 4 . 4 4 . Hunter 9 | . . . . . . . . . 2 1 2 . . . 4 . Programmer 12 | . . . . 1 1 . 1 . . 2 6 1 . . . . Behemoth 2 | . . . . . . . . . 1 . . 1 . . . . Cetus Guard 3 | . . . . . . . . . . . . . 3 . . . Subdweller 2 | . 2 . . . . . . . . . . . . . . . Packrat 1 | . . . . . . . 1 . . . . . . . . . Mutant 1 | . . . . . . 1 . . . . . . . . . . Best Kill Streak 12 | 3 4 6 7 3 4 1 6 . 1 3 7 4 2 2 12 . Combat Bots Only 6 | . 4 6 6 2 2 1 6 . 1 3 4 3 2 2 4 . Max Kills in Single Turn 7 | 1 1 2 1 2 3 1 2 . 1 1 7 2 2 1 3 . Gunslinging 1 | . . 1 . . . . . . . . 1 1 1 . . . Exploded 4 | . . . . . 1 . 2 . . . 4 . . . . . Melee . | . . . . . . . . . . . . . . . . . Uniques/NPCs Destroyed . | . . . . . . . . . . . . . . . . . Combat | -11 -10 -9 -8 -7 -6 -6 -6 -6 -5 -5 -4 -4 -4 -4 -4 -3 -------- Run | Yrd Mat Mat Mat Fac Fac Low Low Zio Pro Fac Fac Ext Cet Arc Hub Res Hostile Shots Fired 1117 | . 51 97 90 63 69 19 2 . 16 77 86 121 74 33 181 138 Missed 329 | . 15 27 21 22 21 6 1 . 1 9 29 31 25 8 49 64 Hits 788 | . 36 70 69 41 48 13 1 . 15 68 57 90 49 25 132 74 Melee 3 | . . . 2 . . . . . . . . 1 . . . . Projectile 785 | . 36 70 67 41 48 13 1 . 15 68 57 89 49 25 132 74 Critical Strikes 45 | . 2 . 3 1 1 1 . . . 4 3 7 8 . 11 4 Damage Taken 14668 | . 372 743 1200 673 420 204 69 . 333 1245 947 2161 1372 659 2799 1471 Core 2570 | . 86 40 81 85 54 18 . . 56 13 49 169 52 55 492 1320 Absorbed by Shields 743 | . . . . . . . . . . 289 164 236 20 . . 34 Reduced by Siege Mode 639 | . . . . . . . . . . . . 113 171 46 309 . Regen/Repaired (Parts) 91 | . 10 . . . 81 . . . . . . . . . . . Core Remaining (%) 79 | 100 65 90 85 87 . . . . 84 98 . . . . 28 . Volleys Fired 550 | 24 51 97 91 27 17 10 12 . 11 39 43 57 21 22 28 . Largest 4 | 2 2 3 3 3 3 3 3 . 3 3 4 4 4 4 4 . Hottest 265 | 100 130 160 85 133 136 131 139 . 166 193 265 251 219 205 205 . Shots Fired 1612 | 48 102 286 255 76 49 31 36 . 26 93 166 222 54 76 92 . Gun 1410 | 48 83 260 217 66 48 31 33 . 20 75 158 199 44 53 75 . Cannon 195 | . 19 26 38 10 . . . . 5 18 6 23 10 23 17 . Launcher 7 | . . . . . 1 . 3 . 1 . 2 . . . . . Special . | . . . . . . . . . . . . . . . . . Kinetic 1110 | . . 247 255 64 32 20 21 . 12 44 79 142 40 66 88 . Thermal 472 | 48 102 35 . 12 16 11 12 . 8 44 79 80 11 10 4 . Explosive 7 | . . . . . 1 . 3 . 1 . 2 . . . . . Electromagnetic 23 | . . 4 . . . . . . 5 5 6 . 3 . . . Robot Hit Streak 41 | 11 10 16 26 13 9 6 10 . 5 13 11 41 16 20 16 . Robot Miss Streak 6 | 3 3 4 4 4 3 3 6 . 4 3 4 6 4 2 4 . Penetration Max 1 | . . . . . . . . . . 1 1 1 . 1 1 . Secondary Targets 19 | . 1 7 1 . . . 1 . . . 1 4 1 . 3 . Max Gunslinging Chain 2 | . 1 2 1 . . . 1 . . . 1 2 1 . 1 . Shots Hit Robots 1028 | 34 66 161 169 36 35 16 31 . 21 62 85 151 38 56 67 . Core Hits 503 | 9 31 67 73 22 25 17 33 . 20 56 40 56 11 14 29 . Critical Kills 5 | . . . . 1 . . . . . . . 2 1 1 . . Critical Parts Destroyed 11 | . . 1 . . . . . . . 1 . 4 2 2 1 . Critical Strikes 46 | 3 3 1 3 1 . . . . 2 5 2 11 6 8 1 . Burn 18 | 3 3 . . . . . . . 1 4 2 4 1 . . . Destroy 22 | . . 1 . 1 . . . . . 1 . 6 5 7 1 . Blast 5 | . . . 3 . . . . . . . . 1 . 1 . . Corrupt 1 | . . . . . . . . . 1 . . . . . . . Melee Attacks 13 | . . . 1 2 . . . . 2 4 2 2 . . . . Impact 3 | . . . 1 2 . . . . . . . . . . . . Slashing . | . . . . . . . . . . . . . . . . . Piercing 10 | . . . . . . . . . 2 4 2 2 . . . . Sneak Attacks . | . . . . . . . . . . . . . . . . . Combat Hostiles . | . . . . . . . . . . . . . . . . . Follow-up Attacks . | . . . . . . . . . . . . . . . . . Damage Inflicted 24067 | 450 1044 2945 2953 795 811 313 913 . 422 1543 3409 4172 795 1608 1894 . Guns 18270 | 450 653 2573 2224 688 492 313 632 . 236 1427 1780 3749 614 922 1517 . Cannons 3431 | . 391 372 687 74 . . . . 76 104 164 361 181 670 351 . Explosions 2110 | . . . . . 314 . 259 . 72 . 1465 . . . . . Melee 38 | . . . . . . . . . 38 . . . . . . . Ramming 218 | . . . 42 33 5 . 22 . . 12 . 62 . 16 26 . Kinetic 14984 | . . 2498 2911 518 283 201 382 . 151 796 820 2684 458 1500 1782 . Thermal 8000 | 450 1044 435 . 244 518 112 250 . 85 631 2355 1426 272 92 86 . Explosive 406 | . . . . . 5 . 259 . 72 . 70 . . . . . Electromagnetic 421 | . . 12 . . . . . . 76 104 164 . 65 . . . Impact . | . . . . . . . . . . . . . . . . . Slashing . | . . . . . . . . . . . . . . . . . Piercing 38 | . . . . . . . . . 38 . . . . . . . Highest Corruption 7 | . . . 2 4 2 2 2 2 . 7 3 3 6 6 6 5 Average Corruption 2 | . . . 2 1 1 2 2 2 . 6 2 3 4 6 6 5 Corruption Purged . | . . . . . . . . . . . . . . . . . Corruption Blocked . | . . . . . . . . . . . . . . . . . Effects 177 | . . . 5 10 3 35 13 . . 24 22 31 15 9 5 5 Message Errors 46 | . . . 2 3 . 10 4 . . 2 6 10 4 2 3 . Matter Fused 43 | . . . . 4 1 3 4 . . 6 6 9 5 1 . 4 Heat Flow Errors 14 | . . . . 1 . 4 1 . . 3 . 3 1 1 . . Energy Discharges 24 | . . . 1 1 1 5 2 . . 6 . 3 3 1 . 1 Parts Rejected 3 | . . . . . . . . . . 2 . . . . 1 . Parts Fused 3 | . . . . . . 2 . . . 1 . . . . . . Data Loss (minor) 18 | . . . 2 . 1 4 . . . . 6 2 1 1 1 . Data Loss (major) 12 | . . . . 1 . 3 1 . . 4 2 1 . . . . Misfires 4 | . . . . . . 1 . . . . . 1 1 1 . . Alerts 7 | . . . . . . 3 1 . . . 2 . . 1 . . Weapon Failures 3 | . . . . . . . . . . . . 2 . 1 . . Overload Shots . | . . . . . . . . . . . . . . . . . Overflow Damage 295 | . 18 2 . . 49 . 2 . . . 212 . . 12 . . Projectiles 32 | . 18 2 . . . . . . . . . . . 12 . . Explosions 261 | . . . . . 49 . . . . . 212 . . . . . Melee 2 | . . . . . . . 2 . . . . . . . . . Knockbacks 10 | . . . 4 . . . . . . . . 2 . 1 3 . Impact 1 | . . . . . . . . . . . . 1 . . . . Kinetic 9 | . . . 4 . . . . . . . . 1 . 1 3 . Secondary . | . . . . . . . . . . . . . . . . . Self-Inflicted Damage 80 | . . . . . . . 55 . . . 20 . . . 5 . Shots 2 | . . . . . . . 1 . . . 1 . . . . . Rammed 28 | . . . 5 4 1 . . . . 3 . 7 . 2 6 . Targets Rammed 33 | . . . 6 7 1 . 1 . . 3 . 7 . 2 6 . Kicked . | . . . . . . . . . . . . . . . . . Crushed 5 | . . . 1 3 . . 1 . . . . . . . . . Highest Temperature 357 | 256 285 322 357 219 102 185 211 . 164 288 60 243 115 43 . . Average Temperature 72 | 94 86 62 108 66 40 61 43 . 55 61 15 60 78 43 . . Received Heat Transfer 2917 | . 144 177 603 114 126 136 . . 45 232 67 299 180 72 449 273 Effects 8 | . 1 1 5 . . . 1 . . . . . . . . . Energy Bleed 3 | . 1 1 . . . . 1 . . . . . . . . . Interference 5 | . . . 5 . . . . . . . . . . . . . Siege Activations 11 | . . . . . . . . . . . . 6 1 3 1 . Total Turns 242 | . . . . . . . . . . . . 79 27 56 80 . Longest Duration 80 | . . . . . . . . . . . . 52 27 32 80 . Martial Activations . | . . . . . . . . . . . . . . . . . Shielding Activations . | . . . . . . . . . . . . . . . . . Robots Disrupted . | . . . . . . . . . . . . . . . . . Combat Hostiles . | . . . . . . . . . . . . . . . . . Robots Corrupted 1 | . . . . . . . . . . . 1 . . . . . Combat Hostiles 1 | . . . . . . . . . . . 1 . . . . . Parts Fried 2 | . . . . . . . . . . . 2 . . . . . Impact Corruptions 1 | . . . . . . . 1 . . . . . . . . . Robots Melted 2 | . 1 . . . . . . . . 1 . . . . . . Combat Hostiles 2 | . 1 . . . . . . . . 1 . . . . . . Parts Melted 25 | 3 3 1 . 1 1 . 1 . 1 6 5 2 1 . . . Heat Transferred 14576 | 1554 2664 703 . 550 700 250 550 . 300 1800 2319 2483 444 148 111 . Parts Sabotaged . | . . . . . . . . . . . . . . . . . Parts Stolen . | . . . . . . . . . . . . . . . . . Parts Stripped . | . . . . . . . . . . . . . . . . . Power Chain Reactions . | . . . . . . . . . . . . . . . . . Alert | -11 -10 -9 -8 -7 -6 -6 -6 -6 -5 -5 -4 -4 -4 -4 -4 -3 ------- Run | Yrd Mat Mat Mat Fac Fac Low Low Zio Pro Fac Fac Ext Cet Arc Hub Res Maximum Alert Level 2 | . . 2 2 . . . . . . . 1 2 1 . 1 1 Low Security (%) 70 | 100 100 63 3 100 100 . . . . 100 86 42 95 100 98 44 Level 1 19 | . . 14 57 . . . . . . . 13 47 4 . 1 55 Level 2 9 | . . 21 39 . . . . . . . . 10 . . . . Level 3 . | . . . . . . . . . . . . . . . . . Level 4 . | . . . . . . . . . . . . . . . . . Level 5 . | . . . . . . . . . . . . . . . . . High Security . | . . . . . . . . . . . . . . . . . Max Security . | . . . . . . . . . . . . . . . . . Peak Influence 525 | 10 127 525 503 190 109 . . . . 82 272 450 218 119 200 278 Initial 218 | . . 24 213 179 37 . . . . . . 119 218 . 4 81 Average 141 | 1 41 174 367 133 27 . . . . 23 86 211 59 61 70 198 Influence Increases 6266 | 40 413 1023 738 265 211 204 281 . 196 261 652 1058 87 188 307 342 Destroy 0b10 Robot/C 3480 | . 280 660 440 120 100 140 240 . 140 160 380 520 60 80 160 . Destroy 0b10 Robot/NC 365 | 40 30 95 60 30 15 . 5 . . 15 20 30 . 5 20 . Destroy Leader 740 | . 66 154 120 52 42 10 20 . 30 40 80 66 . . 60 . Allied During Kill 453 | . . . . . . 39 16 . 26 . . 372 . . . . Successful Hack 104 | . 4 44 21 . . . . . . 2 . 6 . . . 27 Disable Machine 405 | . 15 30 60 45 30 . . . . . 90 15 15 75 30 . Destroy Structure 254 | . 3 25 7 3 24 . . . . 14 82 34 12 28 22 . Partial Spotted 45 | . . . . . . . . . . . . . . . 15 30 Lose Combat Pursuer 420 | . 15 15 30 15 . 15 . . . 30 . 15 . . . 285 Influence Decreases 6103 | 40 356 575 848 582 289 204 281 . 196 261 409 911 477 174 164 336 Entered New Map 964 | . . 33 292 216 41 . . . . . . 124 172 . 10 76 Time Decay 4461 | 40 356 542 556 356 248 204 221 . 138 261 399 567 185 164 74 150 Search Patrol Dispatched 100 | . . . . . . . . . . . . . . . . 100 Lost Part 240 | . . . . 10 . . . . . . 10 40 80 10 80 10 Lost Ally 338 | . . . . . . . 60 . 58 . . 180 40 . . . Squads Dispatched 35 | . 3 2 1 2 1 . 1 . . 3 5 3 . . 8 6 Investigation 6 | . 1 1 . . . . . . . . . 1 . . 1 2 Extermination 10 | . . . . 1 1 . . . . 2 4 . . . 1 1 Reinforcement 12 | . 2 1 1 . . . . . . 1 . 1 . . 3 3 Assault 2 | . . . . . . . 1 . . . . 1 . . . . Garrison 5 | . . . . 1 . . . . . . 1 . . . 3 . Intercept . | . . . . . . . . . . . . . . . . . Searches Triggered 1 | . . . . . . . . . . . . . . . . 1 Construction Impeded 2 | . . . . . . . . . . . . 1 . . 1 . Haulers Reinforced 1 | . . . . . . . . . . 1 . . . . . . Active Scanning Responses . | . . . . . . . . . . . . . . . . . Cargo Convoy Interrupts . | . . . . . . . . . . . . . . . . . Stealth | -11 -10 -9 -8 -7 -6 -6 -6 -6 -5 -5 -4 -4 -4 -4 -4 -3 --------- Run | Yrd Mat Mat Mat Fac Fac Low Low Zio Pro Fac Fac Ext Cet Arc Hub Res Distress Signals 14 | . 1 2 3 . . . . . . . . 3 1 . 2 2 Communications Jammed 1 | . . . . . . . . . . . . 1 . . . . Distress Signals 1 | . . . . . . . . . . . . 1 . . . . Times Spotted 297 | . 23 46 36 11 6 13 9 . 6 10 24 44 5 12 22 30 Peak Tracking Total 14 | . 5 7 4 3 1 7 9 . 3 3 6 11 5 1 10 14 Tactical Retreats 14 | . 1 1 2 1 . 1 . . . 2 . 1 . . . 5 Traps | -11 -10 -9 -8 -7 -6 -6 -6 -6 -5 -5 -4 -4 -4 -4 -4 -3 ------- Run | Yrd Mat Mat Mat Fac Fac Low Low Zio Pro Fac Fac Ext Cet Arc Hub Res Traps Triggered 9 | . 1 1 2 1 1 . . . . . . . . . . 3 Indirectly . | . . . . . . . . . . . . . . . . . Trap Hack Attempts . | . . . . . . . . . . . . . . . . . Triggered . | . . . . . . . . . . . . . . . . . Disarmed . | . . . . . . . . . . . . . . . . . Reprogrammed . | . . . . . . . . . . . . . . . . . Reused . | . . . . . . . . . . . . . . . . . Traps Extracted . | . . . . . . . . . . . . . . . . . Installed . | . . . . . . . . . . . . . . . . . Triggered . | . . . . . . . . . . . . . . . . . Machines | -11 -10 -9 -8 -7 -6 -6 -6 -6 -5 -5 -4 -4 -4 -4 -4 -3 ---------- Run | Yrd Mat Mat Mat Fac Fac Low Low Zio Pro Fac Fac Ext Cet Arc Hub Res Machines Disabled 28 | . 1 2 4 3 2 1 . . . . 6 1 1 5 2 . Max in Single Turn 2 | . 1 1 1 1 2 1 . . . . 2 1 1 1 2 . Garrison Access 1 | . . . . . . . . . . . 1 . . . . . Machines Repaired . | . . . . . . . . . . . . . . . . . Machines Dismantled . | . . . . . . . . . . . . . . . . . Machines Sabotaged . | . . . . . . . . . . . . . . . . . Overloaded Fab Kills . | . . . . . . . . . . . . . . . . . Hacking | -11 -10 -9 -8 -7 -6 -6 -6 -6 -5 -5 -4 -4 -4 -4 -4 -3 --------- Run | Yrd Mat Mat Mat Fac Fac Low Low Zio Pro Fac Fac Ext Cet Arc Hub Res Machines Accessed 38 | . 6 12 6 . 1 2 1 1 . 4 1 2 . . 1 1 Terminals 25 | . 5 10 5 . . . . . . 2 . 2 . . . 1 Fabricators . | . . . . . . . . . . . . . . . . . Repair Stations 3 | . 1 1 . . 1 . . . . . . . . . . . Recycling Units . | . . . . . . . . . . . . . . . . . Scanalyzers 3 | . . 1 1 . . . . . . 1 . . . . . . Garrison Access 3 | . . . . . . . . . . 1 1 . . . 1 . Total Hacks 105 | . 21 31 19 . 4 4 1 6 . 9 1 4 . . 2 3 Successful 61 | . 13 13 10 . 4 4 1 6 . 7 1 1 . . . 1 Failed 42 | . 8 17 8 . . . . . . 2 . 3 . . 2 2 Catastrophic 6 | . 1 3 . . . . . . . . . 1 . . 1 . Database Lockouts 2 | . . 1 1 . . . . . . . . . . . . . Manual 54 | . 16 24 12 . . . . . . 2 . . . . . . Terminals 65 | . 17 26 13 . . . . . . 2 . 4 . . . 3 Fabricators . | . . . . . . . . . . . . . . . . . Repair Stations 10 | . 4 2 . . 4 . . . . . . . . . . . Recycling Units . | . . . . . . . . . . . . . . . . . Scanalyzers 14 | . . 3 6 . . . . . . 5 . . . . . . Garrison Access 5 | . . . . . . . . . . 2 1 . . . 2 . Terminal Hacks 19 | . 2 3 1 . . 4 1 6 . . . 1 . . . 1 Record 4 | . . . 1 . . 3 . . . . . . . . . . Part Schematic 6 | . . . . . . . . 6 . . . . . . . . Robot Analysis 1 | . . . . . . . . . . . . . . . . 1 Prototype ID Bank 1 | . . 1 . . . . . . . . . . . . . . Open Door 3 | . . . . . . 1 1 . . . . 1 . . . . Branch Access Points 1 | . . 1 . . . . . . . . . . . . . . Terminal Index 2 | . 1 1 . . . . . . . . . . . . . . Locate Traps 1 | . 1 . . . . . . . . . . . . . . . Fabricator Hacks . | . . . . . . . . . . . . . . . . . Repair Station Hacks 8 | . 3 1 . . 4 . . . . . . . . . . . Scan Component 5 | . 2 1 . . 2 . . . . . . . . . . . Repair 3 | . 1 . . . 2 . . . . . . . . . . . Recycling Unit Hacks . | . . . . . . . . . . . . . . . . . Scanalyzer 10 | . . 2 3 . . . . . . 5 . . . . . . Retrieve Study 10 | . . 2 3 . . . . . . 5 . . . . . . Garrison Access Hacks 1 | . . . . . . . . . . . 1 . . . . . Seal Access 1 | . . . . . . . . . . . 1 . . . . . Unauthorized Hacks 23 | . 8 7 6 . . . . . . 2 . . . . . . Terminals 23 | . 8 7 6 . . . . . . 2 . . . . . . Botnet 3 | . 2 1 . . . . . . . . . . . . . . Operators 3 | . 1 1 1 . . . . . . . . . . . . . Skim 17 | . 5 5 5 . . . . . . 2 . . . . . . Fabricators . | . . . . . . . . . . . . . . . . . Repair Stations . | . . . . . . . . . . . . . . . . . Recycling Units . | . . . . . . . . . . . . . . . . . Scanalyzers . | . . . . . . . . . . . . . . . . . Garrison Access . | . . . . . . . . . . . . . . . . . Data Cores Recovered 1 | . . . . . . . . . . . . 1 . . . . Used . | . . . . . . . . . . . . . . . . . Hacking Detections 21 | . 4 8 3 . . . . . . 3 . 1 . . 1 1 Full Trace Events 4 | . 1 . . . . . . . . . . 1 . . 1 1 Feedback Events . | . . . . . . . . . . . . . . . . . Feedback Blocked . | . . . . . . . . . . . . . . . . . Robot Schematics Acquired . | . . . . . . . . . . . . . . . . . Robots Built . | . . . . . . . . . . . . . . . . . Authchips . | . . . . . . . . . . . . . . . . . Time . | . . . . . . . . . . . . . . . . . Total Robot Build Rating . | . . . . . . . . . . . . . . . . . Part Schematics Acquired 6 | . . . . . . . . 6 . . . . . . . . Parts Built . | . . . . . . . . . . . . . . . . . Authchips . | . . . . . . . . . . . . . . . . . Time . | . . . . . . . . . . . . . . . . . Total Part Build Rating . | . . . . . . . . . . . . . . . . . Part Studies Acquired 10 | . . 2 3 . . . . . . 5 . . . . . . Parts Repaired 3 | . 1 . . . 2 . . . . . . . . . . . Time 106 | . 36 . . . 70 . . . . . . . . . . . Parts Recycled . | . . . . . . . . . . . . . . . . . Recycled Matter . | . . . . . . . . . . . . . . . . . Retrieved Matter . | . . . . . . . . . . . . . . . . . Retrieved Components . | . . . . . . . . . . . . . . . . . Parts Scanalyzed . | . . . . . . . . . . . . . . . . . Part Schematics Acquired . | . . . . . . . . . . . . . . . . . Parts Damaged . | . . . . . . . . . . . . . . . . . Bothacking | -11 -10 -9 -8 -7 -6 -6 -6 -6 -5 -5 -4 -4 -4 -4 -4 -3 ------------ Run | Yrd Mat Mat Mat Fac Fac Low Low Zio Pro Fac Fac Ext Cet Arc Hub Res Used RIF Installer . | . . . . . . . . . . . . . . . . . Robots Hacked . | . . . . . . . . . . . . . . . . . Non-combat . | . . . . . . . . . . . . . . . . . Combat . | . . . . . . . . . . . . . . . . . Robot Hacks Applied . | . . . . . . . . . . . . . . . . . Relay Couplers Released . | . . . . . . . . . . . . . . . . . Fabnet Peak Effective % . | . . . . . . . . . . . . . . . . . Robots Rewired 19 | . . . . . . 6 2 . . . . 11 . . . . Allies Hacked 1 | . . . . . . . . . . . . 1 . . . . Hacks Repelled . | . . . . . . . . . . . . . . . . . Allies | -11 -10 -9 -8 -7 -6 -6 -6 -6 -5 -5 -4 -4 -4 -4 -4 -3 -------- Run | Yrd Mat Mat Mat Fac Fac Low Low Zio Pro Fac Fac Ext Cet Arc Hub Res Total Allies 25 | . . . . . . 6 2 3 . . . 14 . . . . Largest Group 8 | . . . . . . 4 2 3 3 . . 8 2 . . . Highest-Rated Group 304 | . . . . . . 116 62 93 93 . . 304 58 . . . Highest-Rated Ally 51 | . . . . . . 29 32 31 31 . . 51 29 . . . Total Orders 16 | . . . . . . . . . . 4 4 6 1 . 1 . RETURN 16 | . . . . . . . . . . 4 4 6 1 . 1 . Ally Attacks 168 | . . . . . . 32 17 . 46 . . 71 2 . . . Total Damage 3703 | . . . . . . 457 300 . 633 . . 2257 56 . . . Kills 31 | . . . . . . 6 5 . 4 . . 16 . . . . Allies Corrupted 1 | . . . . . . . . . . . . 1 . . . . Allies Melted . | . . . . . . . . . . . . . . . . . Intel | -11 -10 -9 -8 -7 -6 -6 -6 -6 -5 -5 -4 -4 -4 -4 -4 -3 ------- Run | Yrd Mat Mat Mat Fac Fac Low Low Zio Pro Fac Fac Ext Cet Arc Hub Res Active Infowar (turns) 13359 | 197 561 254 82 . 792 1707 1721 1836 1048 1164 1495 1757 120 347 239 39 Sensors 12162 | . . . . . 779 1707 1721 1836 1048 1164 1450 1757 114 347 239 . Seismic 1301 | 197 561 254 82 . 13 . . . . . 114 . . . 80 . Machine Analysis 39 | . . . . . . . . . . . . . . . . 39 Jamming 761 | . . . . . . . . . . . 2 722 37 . . . Robot Analysis Total 1 | . . . . . . . . . . . . . . . . 1 Derelict Logs Recovered 4 | . . . . . . 2 1 1 . . . . . . . . Drone Launches 16 | . . . . . . . . . . 4 4 6 1 . 1 . Drone Recoveries 16 | . . . . . . . . . . 4 4 6 1 . 1 . Exploration | -11 -10 -9 -8 -7 -6 -6 -6 -6 -5 -5 -4 -4 -4 -4 -4 -3 ------------- Run | Yrd Mat Mat Mat Fac Fac Low Low Zio Pro Fac Fac Ext Cet Arc Hub Res Turns Passed 19287 | 269 1276 2105 1626 805 792 1776 1721 1836 1048 1164 1694 1757 522 347 247 302 Spaces Moved 10226 | 105 581 999 736 448 422 1053 1081 1164 632 584 883 651 150 146 86 505 Core 499 | 2 . . . . . . . . . . . . 12 . 10 475 Treads 9727 | 103 581 999 736 448 422 1053 1081 1164 632 584 883 651 138 146 76 30 Legs . | . . . . . . . . . . . . . . . . . Wheels . | . . . . . . . . . . . . . . . . . Hover . | . . . . . . . . . . . . . . . . . Flight . | . . . . . . . . . . . . . . . . . Fastest Speed 50 | 50 160 145 145 145 145 152 152 152 155 158 155 180 160 160 50 50 Average Speed 151 | 157 160 154 148 145 148 152 152 152 155 158 156 180 253 160 147 57 Slowest Speed 1800 | 160 160 160 160 148 152 152 152 155 158 158 180 180 1800 160 160 180 Overloaded Moves . | . . . . . . . . . . . . . . . . . Propulsion Burnouts . | . . . . . . . . . . . . . . . . . Robots Hopped . | . . . . . . . . . . . . . . . . . Potential Cave-ins 16 | . . . . 1 . . . . . 7 8 . . . . . Cave-ins Triggered 2 | . . . . 1 . . . . . 1 . . . . . . Exploration Rate (%) 53 | 7 95 74 67 18 7 91 97 85 67 20 18 74 71 87 21 17 Regions Visited 16 Branch Regions 8 Pre-discovered Areas 7 | . 1 3 1 . . 1 . 1 . . . . . . . . Known Exits Taken 15 | . 1 1 1 1 1 1 1 1 1 1 1 1 1 1 1 . Unknown Exits Taken 1 | 1 . . . . . . . . . . . . . . . . Scrap Searched 12 | . . . . . . 2 4 4 2 . . . . . . . Spaces Dug 24 | . . 5 1 3 . . . . . 5 10 . . . . . Terrain Destroyed 238 | . 3 21 4 5 27 . 23 . 2 15 88 19 4 18 9 . Melee 7 | . . . 1 2 . . . . . 2 2 . . . . . Projectile 126 | . 3 21 3 3 3 . . . . 13 30 19 4 18 9 . AOE 105 | . . . . . 24 . 23 . 2 . 56 . . . . . Terrain Rammed . | . . . . . . . . . . . . . . . . . Walls Destroyed . | . . . . . . . . . . . . . . . . . Machines Disabled . | . . . . . . . . . . . . . . . . . Actions | -11 -10 -9 -8 -7 -6 -6 -6 -6 -5 -5 -4 -4 -4 -4 -4 -3 --------- Run | Yrd Mat Mat Mat Fac Fac Low Low Zio Pro Fac Fac Ext Cet Arc Hub Res Total 12821 | 158 820 1364 1105 557 557 1210 1137 1223 671 735 1084 1094 246 206 139 515 Wait 1253 | 10 145 177 223 42 83 51 16 55 15 56 78 206 50 32 14 . Move 10211 | 104 580 998 735 447 421 1052 1080 1163 631 583 882 651 149 145 85 505 Hop . | . . . . . . . . . . . . . . . . . Pick Up 79 | 7 12 19 7 7 4 . 2 2 . 3 5 9 1 1 . . Fast Attach 39 | 7 1 . . 1 4 . 1 . . 4 5 3 10 . . 3 Attach 19 | . . 2 2 2 3 . . . . 1 1 3 2 1 2 . Detach 6 | . . . . . 2 . . . . . 1 1 1 . . 1 Swap 237 | 2 23 36 24 13 11 3 6 1 11 33 46 16 7 2 3 . Drop 138 | 4 8 35 16 9 11 1 4 2 1 9 21 9 5 1 1 1 Fire 550 | 24 51 97 91 27 17 10 12 . 11 39 43 57 21 22 28 . Melee 13 | . . . 1 2 . . . . 2 4 2 2 . . . . Ram 4 | . . . . . . . . . . . . . . . 4 . Kick . | . . . . . . . . . . . . . . . . . Crush 28 | . . . 6 7 1 . 1 . . 3 . 6 . 2 2 . Escape Stasis 5 | . . . . . . . . . . . . . . . . 5 Rewire 239 | . . . . . . 93 15 . . . . 131 . . . . Trap . | . . . . . . . . . . . . . . . . . Miscellaneous . | . . . . . . . . . . . . . . . . . Route ------- -11/Scrapyard -10/Materials (discovered 5 exits: *Mat x3 / [*Min] / Sub) -9/Materials (discovered 6 exits: *Mat x3 / *Min / *Sto x2) -8/Materials (discovered 3 exits: *Fac x3) -7/Factory (discovered 5 exits: *Fac x4 / Low) -6/Factory (discovered 2 exits: *Fac / *Low) -6/Lower Caves -6/Lower Caves (discovered 2 exits: *Fac / *Zio) -6/Zion -5/Proximity Caves -5/Factory (discovered 4 exits: *Fac x4) -4/Factory (discovered 6 exits: *Res x2 / Upp x2 / *Ext x2) -4/Extension (discovered 2 exits: *Res / *Cet) -4/Cetus -4/Archives (discovered 2 exits: *Res / *Hub) -4/Hub_04(d) -3/Research History --------- Turn | Location | Event 9 | -11/Scrapyard | Discovered new exit (range 15) 270 | -11/Scrapyard | Entered Materials 315 | -10/Materials | Build established: Mutant 592 | -10/Materials | Discovered new exit (range 9) 770 | -10/Materials | Derelicts attacked the area 771 | -10/Materials | Discovered new exit (range 4) 989 | -10/Materials | Discovered new exit (range 16) 1147 | -10/Materials | Learned 2 Mines zone layouts 1208 | -10/Materials | Identified exit to Materials 1208 | -10/Materials | Identified exit to Subcaves 1250 | -10/Materials | Repaired Broken Seismic Detector 1299 | -10/Materials | Learned location of Subcaves (-10) 1352 | -10/Materials | Learned Storage trap positions 1424 | -10/Materials | Learned location of 2 exits from Materials 1476 | -10/Materials | Learned Storage stockpile data 1546 | -10/Materials | Entered another Materials area 1546 | -9/Materials | Evolved 2 slots: Propulsion x1, Weapon x1 1547 | -9/Materials | Identified exit to Mines 1548 | -9/Materials | Identified exit to Materials 1756 | -9/Materials | Discovered new exit (range 11) 1968 | -9/Materials | Discovered new exit (range 4) 2215 | -9/Materials | Build established: Scavenger-Gunner 2567 | -9/Materials | Central database locked down 2697 | -9/Materials | Build established: Scavenger-Tank 2813 | -9/Materials | Discovered exit to Materials (range 16) 3023 | -9/Materials | Build established: Tank 3173 | -9/Materials | Learned Storage terminal intel 3272 | -9/Materials | Learned Storage trap positions 3333 | -9/Materials | Learned location of Storage (-9) 3347 | -9/Materials | Loaded intel: 2 recycling unit locations 3350 | -9/Materials | Identified exit to Storage 3451 | -9/Materials | Learned 4 Materials zone layouts 3651 | -9/Materials | Entered another Materials area 3651 | -8/Materials | Evolved 2 slots: Utility x2 4051 | -8/Materials | Discovered new exit (range 16) 4434 | -8/Materials | Discovered new exit (range 10) 4906 | -8/Materials | Central database locked down 5095 | -8/Materials | Learned Factory emergency access door positions 5165 | -8/Materials | Learned 4 Lower Caves zone layouts 5197 | -8/Materials | Learned Factory stockpile data 5199 | -8/Materials | Identified exit to Factory 5236 | -8/Materials | Learned location of 1 exit from Storage 5277 | -8/Materials | Entered Factory 5277 | -7/Factory | Evolved 2 slots: Propulsion x1, Utility x1 5278 | -7/Factory | Identified exit to Factory 5278 | -7/Factory | Identified exit to Lower Caves 5343 | -7/Factory | Crushed by falling debris 6060 | -7/Factory | Garrison activated, responded to threat 6082 | -7/Factory | Entered another Factory area 6082 | -6/Factory | Evolved 2 slots: Utility x2 6222 | -6/Factory | Discovered new exit (range 16) 6423 | -6/Factory | Identified exit to Lower Caves 6621 | -6/Factory | Repaired Cooling System 6642 | -6/Factory | Build established: Skirmisher 6660 | -6/Factory | Repaired Adv. Treads 6743 | -6/Factory | Discovered new exit (range 6) 6751 | -6/Factory | Identified exit to Factory 6874 | -6/Factory | Entered Lower Caves 7049 | -6/Lower Caves | Attacked by a delusional Derelict stockpiling Unaware 7389 | -6/Lower Caves | Build established: Scavenger-Skirmisher 7484 | -6/Lower Caves | Learned location of Zion (-6) 7671 | -6/Lower Caves | Discovered new exit (range 12) 7675 | -6/Lower Caves | Encountered a Warlord checkpoint 7719 | -6/Lower Caves | Entered an active Warlord outpost 7753 | -6/Lower Caves | Learned 8 Factory zone layouts 7753 | -6/Lower Caves | Learned Extension trap positions 7912 | -6/Lower Caves | Attracted the attention of an 0b10 outpost 7926 | -6/Lower Caves | Identified exit to Lower Caves 7972 | -6/Lower Caves | Lost 8 allies 8144 | -6/Lower Caves | Learned location of 1 exit from Proximity Caves 8650 | -6/Lower Caves | Entered another Lower Caves area 8650 | -6/Lower Caves | Accompanied by 2 allies 8863 | -6/Lower Caves | Attracted the attention of an 0b10 outpost 9535 | -6/Lower Caves | Discovered exit to Factory (range 14) 9697 | -6/Lower Caves | Encountered a Warlord checkpoint 9838 | -6/Lower Caves | Learned Factory emergency access door positions 10096 | -6/Lower Caves | Discovered new exit (range 15) 10113 | -6/Lower Caves | Identified exit to Zion 10371 | -6/Lower Caves | Entered Zion 10425 | -6/Zion | System corruption cleaned by Quarantine Array 10544 | -6/Zion | Found CR-A16's Pointy Stick 10565 | -6/Zion | Discovered new exit (range 15) 10733 | -6/Zion | Given A8's code to call for help 10932 | -6/Zion | Gained Derelict followers 11057 | -6/Zion | Learned location of Armory (-3) 11613 | -6/Zion | Met Imprinter 11779 | -6/Zion | Given the Hacking Drone Bay 11781 | -6/Zion | Found Prototype Device 12068 | -6/Zion | Build established: Skirmisher 12201 | -6/Zion | Identified exit to Proximity Caves 12207 | -6/Zion | Entered Proximity Caves 12207 | -5/Proximity Caves | Accompanied by 3 allies 12248 | -5/Proximity Caves | Attracted the attention of an 0b10 checkpoint 12970 | -5/Proximity Caves | Spotted B-75 Beast 12994 | -5/Proximity Caves | Revealed the true nature of CR-A16's Pointy Stick 12997 | -5/Proximity Caves | Destroyed B-75 Beast 13255 | -5/Proximity Caves | Entered Factory 13255 | -5/Factory | Evolved 2 slots: Power x1, Utility x1 13255 | -5/Factory | Identified Hacking Drone Bay 13256 | -5/Factory | Identified exit to Factory 13276 | -5/Factory | Build established: Scavenger-Skirmisher 13762 | -5/Factory | Crushed by falling debris 14419 | -5/Factory | Entered another Factory area 14419 | -4/Factory | Evolved 2 slots: Utility x1, Weapon x1 14420 | -4/Factory | Identified exit to Extension 14464 | -4/Factory | Build established: Tank 14637 | -4/Factory | Discovered new exit (range 7) 14688 | -4/Factory | Discovered new exit (range 15) 14747 | -4/Factory | Identified exit to Research 14956 | -4/Factory | Build established: Scavenger-Tank 14999 | -4/Factory | Garrison activated, responded to threat 15026 | -4/Factory | Identified exit to Upper Caves 16113 | -4/Factory | Entered Extension 16114 | -4/Extension | Loaded intel: 12 trap records 16218 | -4/Extension | Build established: Tank 16314 | -4/Extension | Rescued a captive Derelict 16721 | -4/Extension | Identified exit to Cetus 16775 | -4/Extension | Build established: Commander-Tank 16846 | -4/Extension | Spotted B-86 Titan 16905 | -4/Extension | Destroyed B-86 Titan 16926 | -4/Extension | Rescued a captive Derelict 16927 | -4/Extension | Rescued a captive Derelict 17000 | -4/Extension | Lost 3 allies 17019 | -4/Extension | Spotted B-86 Titan 17031 | -4/Extension | Allies destroyed B-86 Titan 17272 | -4/Extension | Build established: Tank 17687 | -4/Extension | Build established: Commander-Tank 17846 | -4/Extension | Discovered exit to Research (range 10) 17863 | -4/Extension | First assault squad dispatched 17868 | -4/Extension | Disrupted transfer network 17870 | -4/Extension | Entered Cetus 17870 | -4/Cetus | Accompanied by 2 allies 17892 | -4/Cetus | Spotted Cetus Guard 17894 | -4/Cetus | Spotted Cetus Guard 17894 | -4/Cetus | Spotted Cetus Guard 17896 | -4/Cetus | Spotted Cetus Guard 17900 | -4/Cetus | Lost 4 allies 17926 | -4/Cetus | Destroyed Cetus Guard 17926 | -4/Cetus | Destroyed Cetus Guard 17979 | -4/Cetus | Destroyed Cetus Guard 18006 | -4/Cetus | Lost 8 parts (2p3u3w) 18366 | -4/Cetus | Discovered new exit (range 16) 18388 | -4/Cetus | Identified exit to Archives 18392 | -4/Cetus | Entered Archives 18536 | -4/Archives | Discovered exit to Research (range 14) 18595 | -4/Archives | Discovered new exit (range 13) 18606 | -4/Archives | Build established: Scavenger-Skirmisher 18738 | -4/Archives | Identified exit to Hub_04(d) 18739 | -4/Archives | Entered Hub_04(d) 18954 | -4/Hub_04(d) | Lost 5 parts (1p1u3w) 18978 | -4/Hub_04(d) | Released all parts (10) 18979 | -4/Hub_04(d) | Core integrity fell below 50% 18984 | -4/Hub_04(d) | Discovered exit to Research (range 3) 18986 | -4/Hub_04(d) | Entered Research 18986 | -3/Research | Evolved 2 slots: Utility x2 19007 | -3/Research | Lost 3 parts (1p1n1w) 19041 | -3/Research | Spotted B-86 Titan 19049 | -3/Research | Core integrity fell below 50% 19236 | -3/Research | Search patrols dispatched 19259 | -3/Research | Core integrity fell below 20% 19279 | -3/Research | Build established: Mutant 19288 | -3/Research | Destroyed by B-86 Titan with Matter Neutralizer Last Messages --------------- 19230_ Slug penetrates Wall. 19236_ ALERT: Heightened foreign activity detected, multiple search patrols dispatched. 19262_ U-05 Engineer builds a Wall. 19263_ System corrupted: Matter fused (-5). 19272_ Terminal disabled. 19272_ Slug penetrates Wall. 19275_ Penetrated by Slug. 19281_ Triggered Stasis Trap. 19281_ A bubble of rippling energy engulfs the area. 19281_ Field strength at 94. 19281_ Field strength at 88. 19281_ W-44 Eye sends out distress signal. 19282_ Penetrated by Slug. 19282_ Field strength at 66. 19283_ Field strength at 60. 19284_ Field strength at 54. 19285_ Field strength at 48. 19285_ Knocked back. Map ----- +----------------------------------------------------+ | ?????????????????????????????????????????????????? | | ?????????????????????????????????????????????????? | | ?????????????????????????????????????????????????? | | ?????????????????????????????????????????????????? | | ?????????????????????????????????????????????????? | | ?????????????????????????????????????????????????? | | ?????????????????????????????????????????????????? | | ?????????????????????????????????????????????????# | | ???????????????????????????????????##########????# | | ?????????????????????????########### #????# | | ?????????????????????????# # #????# | | ?????????????????????????# # #????# | | ?????????????????????????# """" #]]] #????# | | ?????????????????????????# ! """" #]]] #????# | | ?????????????????????????# """" #]] ! #????# | | ?????????????????????????#! """" # ###### | | ?????????????????????????# # = + | | ?????????????????????????# = # ###### | | ??????????????????????########+######+#######????? | | ??????????????????????#^ g #???????? | | ???????????????#??????# ######### | | ???????????????# ????# | | ???????????????+ ??# "" ######### | | ???????????????# # "T ###+#######????? | | ???????????????# ; % # """ #????? | | ???????????????????###; @ # ! """ #????? | | ????????????????????#BB % + """ #????? | | ????????????????????#BB ^! # #????? | | ????????????????????### !!! %# ! #????? | | ?????????????????????## # ] #????? | | ??????????????????????# # #????? | | ??????????????????????# # ! #????? | | ????????#############?# ###########????? | | ????????# ?# H ??????? | | ????????# # %######+#######????????? | | ????????# = # # ? ??????????????? | | ????????# + t + ?????????????? | | ??????????? """ """ # # """ #????????????? | | ???????????????"T""" # # ??"" #????????????? | | ????????????????#####?# #? ??"? #????????????? | | ??????????????????????# #? ?????#????????????? | | ??????????????????????# %#? [ ?????????????????? | | ???????????????????#### #? ?????????????????? | | ???????????????????# #?? ????????????????? | | ???????????????????# #??###????????????????? | | ?????????????????### #??########???????????? | | ?????????????????#" #? #???????????? | | ?????????????????#"" #? = #???????????? | | ?????????????????#G # #???????????? | | ?????????????????#"" # #???????????? | +----------------------------------------------------+ Best States ------------- Heat Dissipation 169 Energy Generation 45 Energy Capacity 600 Matter Stores 500 Matter Capacity 500 Sight Range 16 Robot Scan Range 16 Terrain Scan Density 10 Jamming Range 16 Armor Coverage 1200 Weapon Cycling 15 Evasion (%) 50 Targeting Accuracy 8 Core Analysis 6 Recoil Reduction 4 Item Schematics ----------------- Flamer | -6/Zion | Free Beamcaster | -6/Zion | Free Barrage Gun | -6/Zion | Free Enh. Flamer | -6/Zion | Free Hvy. Beamcaster | -6/Zion | Free Plasma Flamer | -6/Zion | Free Robot Schematics ------------------ None Fabricated ------------ Nothing Repaired ---------- Seismic Detector | 50% | -10/Materials | Broken Cooling System | 44% | -6/Factory Adv. Treads | 68% | -6/Factory Studied --------- Hvy. Assault Rifle | -9/Materials | Hacked Shotgun | -9/Materials | Hacked Assault Cannon | -8/Materials | Hacked EM Pulse Cannon | -8/Materials | Hacked Imp. Grenade Launcher | -8/Materials | Hacked Imp. Deuterium Engine | -5/Factory | Hacked Hyp. Gauss Rifle | -5/Factory | Hacked Flak Gun | -5/Factory | Hacked Imp. Medium Treads | -5/Factory | Hacked Plasma Rifle | -5/Factory | Hacked Alien Tech Used ----------------- None Achievements -------------- King Drone The Robot, The Myth, The Legend Challenges ------------ None Game ------ Seed FluxPhasingStorage Manual? 0 Play Time 01:47:37 Cumulative 255.5 hours Start 2025.11.09 @ 18:55:32 End 2025.11.09 @ 20:41:47 Sessions 1 Manual Loads 0 Difficulty Rogue Special Mode None Game No. 386 Rogue 384 Adventurer 0 Explorer 2 Win Type - Total 5 Types 3/0/1/1/0/0/0/0/0/0 Lore% 55 Gallery% 64 Achievement% 45 Wizard Run 0 Options --------- Layout 2 ASCII 0 Keyboard 1 Movement Arrows Keybinds 0 Fullscreen 1 Font 28/SmallcapsGlow Map View 50x49 Zoom Use 0% Tactical HUD 1 Map Filters NONE Filters NONE Steam 1 RUN: f4da233e-1447-45b3-97f3-81c4f6a683b0